bitfinex/quotes_SOLUSD_20240813
["timestamp","ask_amount","ask_price","bid_price","bid_amount"]
[1723580973054,32.03579611,146.31,146.29,6.8356]
[1723580973055,12.32156544,146.31,146.29,6.8356]
[1723580973257,32.58194354,146.34,146.3,6.8352]
[1723580973644,6.8339,146.33,146.29,6.8356]
[1723580974947,0.12549,146.32,146.29,6.8356]
[1723580975165,0.25098,146.32,146.29,6.8356]
[1723580978850,0.12549,146.32,146.3,17.0877]
[1723580979049,0.12549,146.32,146.3,17.76849376]
[1723580979248,0.12549,146.32,146.3,17.0877]
[1723580979846,0.12549,146.32,146.31,6.8348]
[1723580980165,0.12549,146.33,146.31,6.8348]
[1723580980359,0.12549,146.33,146.3,23.9228]
[1723580980665,0.25098,146.33,146.3,23.9228]
[1723580981863,0.25098,146.33,146.28,6.8361]
[1723580981864,12.84098,146.33,146.28,6.8361]
[1723580982055,12.84098,146.33,146.27,17.0909]
[1723580982056,6.96029,146.31,146.27,17.0909]
[1723580982371,6.96029,146.31,146.27,23.9271]
[1723580982372,0.12549,146.3,146.27,23.9271]
[1723580982573,0.37647,146.3,146.28,6.836]
[1723580982763,0.12549,146.29,146.28,6.836]
[1723580985071,12.59,146.31,146.27,17.0909]
[1723580985276,0.12549,146.31,146.27,17.0909]
[1723580985469,0.50196,146.31,146.27,17.0909]
[1723580985973,0.50196,146.31,146.29,6.8356]
[1723580986789,0.50196,146.31,146.3,6.8352]
[1723580987371,0.50196,146.31,146.29,23.9245]
[1723580988777,12.59,146.33,146.29,17.089]
[1723580988948,12.97572304,146.33,146.29,17.089]
[1723580989153,12.59,146.33,146.29,17.089]
[1723580989859,12.59,146.33,146.31,6.8348]
[1723580990164,0.25098,146.32,146.31,6.8348]
[1723580990552,45.88768304,146.32,146.29,23.9246]
[1723580990751,0.12549,146.3,146.29,23.9246]
[1723580991481,0.12549,146.32,146.3,6.8352]
[1723580991654,0.50196,146.32,146.3,6.8352]
[1723580992555,0.88768304,146.32,146.3,6.8352]
[1723580992960,0.50196,146.32,146.29,23.9246]
[1723580993184,0.88768304,146.32,146.29,23.9246]
[1723580995789,45.88768304,146.32,146.29,23.9246]
[1723580996409,0.12549,146.3,146.29,17.089]
[1723580996593,0.50196,146.3,146.29,17.089]
[1723581000192,0.50196,146.3,146.28,6.8361]
[1723581000391,0.50196,146.3,146.27,6.8366]
[1723581000593,45.50196,146.3,146.26,23.929]
[1723581000803,0.12549,146.28,146.26,23.929]
[1723581001006,0.50196,146.28,146.26,23.929]
[1723581001222,0.50196,146.28,146.26,17.092]
[1723581001509,45.50196,146.28,146.26,17.092]
[1723581001687,45.88768304,146.28,146.26,17.092]
[1723581002009,12.59,146.27,146.23,17.0955]
[1723581002210,0.88768304,146.26,146.23,17.0955]
[1723581002391,0.88768304,146.26,146.24,6.8379]
[1723581002790,0.88768304,146.26,146.23,17.0955]
[1723581002791,0.50196,146.26,146.25,6.8376]
[1723581003111,0.12549,146.26,146.25,6.8376]
[1723581005233,0.12549,146.26,146.24,6.8379]
[1723581005513,0.51121304,146.26,146.24,6.8379]
[1723581006813,0.12549,146.26,146.24,6.8379]
[1723581007901,0.12549,146.26,146.23,17.0955]
[1723581007902,13.10121304,146.26,146.23,17.0955]
[1723581008216,0.12549,146.24,146.23,17.0955]
[1723581008424,0.12549,146.24,146.23,23.934]
[1723581015734,0.12549,146.24,146.23,17.0955]
[1723581016028,0.12549,146.24,146.23,23.934]
[1723581018416,19.71586764,146.28,146.23,17.0955]
[1723581018614,19.71586764,146.28,146.2,15.8277]
[1723581018615,7.12586764,146.28,146.25,17.0936]
[1723581018832,28.3531,146.31,146.27,6.8366]
[1723581019535,6.8352,146.3,146.26,6.837]
[1723581019743,12.59,146.29,146.26,6.837]
[1723581019949,0.12549,146.28,146.26,6.837]
[1723581020146,0.12549,146.28,146.25,17.0936]
[1723581020147,0.37647,146.28,146.25,17.0936]
[1723581020323,7.59849304,146.28,146.25,17.0936]
[1723581020634,0.12549,146.26,146.23,6.8384]
[1723581020841,0.37647,146.26,146.23,6.8384]
[1723581021212,0.12549,146.25,146.23,6.8384]
[1723581021416,0.12549,146.24,146.23,6.8384]
[1723581021842,12.59,146.27,146.24,17.0943]
[1723581022022,0.12549,146.26,146.24,17.0943]
[1723581022228,0.25098,146.27,146.24,17.0943]
[1723581022813,0.25098,146.27,146.25,6.8372]
[1723581023420,0.25098,146.27,146.26,6.8371]
[1723581023620,0.50196,146.27,146.26,6.8371]
[1723581024021,0.50196,146.27,146.25,6.8375]
[1723581025343,0.50196,146.27,146.26,6.8371]
[1723581025647,0.50196,146.27,146.25,6.8374]
[1723581027920,0.50196,146.27,146.26,6.8371]
[1723581028229,12.59,146.3,146.27,6.8365]
[1723581028543,12.59,146.3,146.28,6.8361]
[1723581028747,0.4823372,146.31,146.3,6.8352]
[1723581030060,0.4823372,146.31,146.3,26.8352]
[1723581030430,0.4823372,146.31,146.3,50.7774913]
[1723581030763,12.59,146.41,146.37,6.8317]
[1723581031249,12.59,146.41,146.38,6.8313]
[1723581031446,22.7206709,146.42,146.38,6.8313]
[1723581031637,0.8264709,146.42,146.39,6.831]
[1723581032069,7.6562709,146.42,146.36,17.0804]
[1723581032274,12.59,146.41,146.37,6.8319]
[1723581032572,19.4201,146.41,146.36,23.9127]
[1723581032763,12.59,146.41,146.37,6.8318]
[1723581033167,12.59,146.41,146.38,6.8313]
[1723581033688,0.8264709,146.42,146.39,6.831]
[1723581034679,0.8264709,146.42,146.38,23.9093]
[1723581034882,0.25098,146.41,146.38,23.9093]
[1723581036896,0.8264709,146.42,146.38,17.0779]
[1723581037102,0.8264709,146.42,146.41,6.8301]
[1723581038651,0.8264709,146.42,146.4,23.9063]
[1723581040187,0.8264709,146.42,146.41,6.8301]
[1723581041396,0.8264709,146.42,146.41,7.17598304]
[1723581041772,0.8264709,146.42,146.41,6.8301]
[1723581043776,0.8264709,146.42,146.41,39.4201]
[1723581044502,19.4154,146.52,146.42,15.7398]
[1723581044667,7.21132304,146.51,146.43,20.0]
[1723581044869,6.8256,146.51,146.47,6.8272]
[1723581045062,19.4151,146.52,146.47,6.8272]
[1723581045293,6.8256,146.51,146.47,17.0679]
[1723581045472,0.38572304,146.5,146.47,23.8951]
[1723581045672,19.415,146.52,146.48,6.8268]
[1723581045901,0.12549,146.51,146.48,6.8268]
[1723581046190,23.20185581,146.54,146.5,6.8259]
[1723581046491,35.4864,146.54,146.49,6.8262]
[1723581047182,7.21022304,146.53,146.49,6.8262]
[1723581047377,6.8255,146.51,146.47,23.8951]
[1723581047590,0.51121304,146.5,146.47,23.8951]
[1723581047797,0.63670304,146.5,146.47,23.8951]
[1723581048088,0.25098,146.5,146.47,23.8951]
[1723581048300,0.25098,146.51,146.48,6.8268]
[1723581048711,12.84098,146.52,146.47,17.0679]
[1723581048924,0.12549,146.52,146.51,6.8254]
[1723581049091,28.6623,146.54,146.5,6.8258]
[1723581049288,12.59,146.54,146.5,6.8258]
[1723581049593,12.59,146.54,146.49,17.0655]
[1723581049594,12.59,146.54,146.49,23.8917]
[1723581049972,19.4141,146.54,146.49,23.8917]
[1723581050202,6.8246,146.53,146.49,23.8917]
[1723581050387,19.4142,146.54,146.49,23.8917]
[1723581050789,0.12549,146.52,146.49,23.8917]
[1723581051925,0.12549,146.52,146.5,6.8259]
[1723581052287,0.12549,146.52,146.51,6.8254]
[1723581053976,0.12549,146.52,146.5,6.8259]
[1723581054181,0.12549,146.51,146.49,17.0655]
[1723581054420,0.12549,146.51,146.43,39.1311]
[1723581054421,0.63670304,146.51,146.47,6.8269]
[1723581054798,0.63670304,146.51,146.43,6.5411]
[1723581054799,0.25098,146.51,146.48,6.8267]
[1723581055632,0.63670304,146.51,146.48,6.8267]
[1723581056202,0.63670304,146.51,146.46,17.0687]
[1723581056203,31.99670304,146.51,146.46,17.0687]
[1723581056396,6.95249,146.48,146.44,6.8286]
[1723581056600,31.36,146.49,146.44,6.8286]
[1723581056601,0.12549,146.46,146.44,6.8286]
[1723581056798,0.25098,146.47,146.45,6.8282]
[1723581056999,0.12549,146.48,146.46,6.8274]
[1723581057200,0.12549,146.48,146.47,6.8273]
[1723581057729,0.25098,146.48,146.46,6.8276]
[1723581058745,0.12549,146.47,146.43,6.8288]
[1723581059046,0.12549,146.46,146.43,6.8288]
[1723581059323,0.25098,146.46,146.43,6.8288]
[1723581059532,0.12549,146.46,146.45,6.8282]
[1723581060025,76.36,146.49,146.45,6.8282]
[1723581060026,83.1864,146.49,146.45,6.8282]
[1723581060212,0.88768304,146.48,146.45,6.8282]
[1723581060526,0.88768304,146.48,146.44,23.8995]
[1723581060828,0.50196,146.48,146.44,23.8995]
[1723581061422,7.71468304,146.48,146.44,23.8995]
[1723581061646,0.12549,146.46,146.45,6.8282]
[1723581061803,0.12549,146.47,146.46,6.8273]
[1723581062002,0.12549,146.47,146.45,6.8281]
[1723581062205,0.12549,146.47,146.46,6.8278]
[1723581065014,0.12549,146.47,146.45,6.8281]
[1723581065536,0.12549,146.47,146.44,23.8996]
[1723581066108,0.12549,146.47,146.44,17.071]
[1723581066832,0.37647,146.48,146.44,17.071]
[1723581066833,0.25098,146.48,146.46,6.8273]
[1723581067043,0.12549,146.49,146.4,6.1555]
[1723581067044,0.12549,146.5,146.47,6.8272]
[1723581067327,45.50196,146.5,146.47,6.8272]
[1723581068932,52.32786,146.5,146.46,17.0691]
[1723581069731,52.32786,146.5,146.46,23.8968]
[1723581069912,45.50196,146.5,146.46,23.8968]
[1723581070112,0.50196,146.5,146.48,6.8265]
[1723581070331,6.48,146.53,146.49,6.8263]
[1723581070332,13.3046,146.53,146.49,6.8263]
[1723581071051,6.8246,146.53,146.49,6.8263]
[1723581071544,38.1842,146.54,146.5,6.8258]
[1723581071720,6.8242,146.54,146.5,6.8258]
[1723581072132,7.20992304,146.54,146.5,6.8258]
[1723581072334,6.8242,146.54,146.49,6.8262]
[1723581072922,0.25098,146.53,146.49,6.8262]
[1723581073440,0.25098,146.52,146.5,6.8257]
[1723581073638,0.25098,146.52,146.49,6.8262]
[1723581074115,0.63670304,146.52,146.48,17.0667]
[1723581074444,0.63670304,146.52,146.47,6.8269]
[1723581074445,7.20217,146.51,146.47,6.8269]
[1723581074617,0.12549,146.5,146.47,6.8269]
[1723581074816,0.37647,146.51,146.44,16.1017]
[1723581075055,0.12549,146.51,146.45,20.0]
[1723581075239,0.50196,146.52,146.45,20.0]
[1723581075423,0.50196,146.52,146.49,6.8263]
[1723581075623,0.88768304,146.52,146.49,6.8263]
[1723581075818,0.50196,146.52,146.49,6.8263]
[1723581076638,0.50196,146.52,146.5,6.8258]
[1723581077857,0.50196,146.52,146.49,23.8915]
[1723581078440,0.50196,146.52,146.5,6.8258]
[1723581079141,0.12549,146.52,146.51,6.8254]
[1723581079526,0.50196,146.53,146.5,6.8259]
[1723581079842,52.71228304,146.53,146.49,17.0653]
[1723581080038,0.12549,146.51,146.49,17.0653]
[1723581080442,0.12549,146.51,146.49,23.8913]
[1723581080617,0.25098,146.51,146.49,23.8913]
[1723581080816,0.63670304,146.51,146.46,17.0692]
[1723581081032,0.63670304,146.51,146.47,6.8269]
[1723581081229,0.63670304,146.51,146.46,17.0692]
[1723581081429,0.63670304,146.51,146.48,6.8267]
[1723581081941,0.12549,146.49,146.46,23.8966]
[1723581082131,12.54,146.48,146.46,23.8966]
[1723581085351,0.25098,146.49,146.46,17.0692]
[1723581085540,0.25098,146.49,146.47,6.8273]
[1723581086248,0.25098,146.49,146.46,17.0692]
[1723581086439,0.12549,146.49,146.48,6.8268]
[1723581086643,0.12549,146.51,146.44,28.6417]
[1723581086845,0.12549,146.5,146.49,6.8264]
[1723581088822,0.12549,146.52,146.5,6.8259]
[1723581089448,12.42707491,146.53,146.5,6.8259]
[1723581090053,0.51121304,146.53,146.49,6.8262]
[1723581090356,6.95009,146.53,146.49,6.8262]
[1723581090558,0.25098,146.52,146.49,6.8262]
[1723581090851,0.12549,146.51,146.49,6.8262]
[1723581092253,0.12549,146.51,146.5,6.8259]
[1723581092438,0.12549,146.52,146.5,6.8259]
[1723581093630,12.93828795,146.53,146.5,6.8259]
[1723581094151,0.12549,146.52,146.49,6.8263]
[1723581094331,0.12549,146.52,146.48,17.0664]
[1723581094531,6.8265,146.49,146.45,23.8979]
[1723581094756,31.47549,146.5,146.46,6.8277]
[1723581094952,0.12549,146.48,146.47,6.8273]
[1723581095255,0.12549,146.51,146.48,6.8268]
[1723581095867,0.12549,146.51,146.49,6.8261]
[1723581096751,0.25098,146.51,146.49,6.8261]
[1723581097351,0.25098,146.51,146.48,6.8267]
[1723581098551,0.63670304,146.51,146.48,6.8267]
[1723581098761,52.46230304,146.51,146.47,23.8947]
[1723581099061,0.12549,146.49,146.47,17.0675]
[1723581099455,0.12549,146.49,146.47,23.8948]
[1723581100251,0.25098,146.51,146.49,6.8263]
[1723581100738,0.63670304,146.51,146.49,6.8263]
[1723581100940,0.25098,146.51,146.49,6.8263]
[1723581101163,0.63670304,146.51,146.49,6.8263]
[1723581101461,0.63670304,146.51,146.48,6.8267]
[1723581101663,0.12549,146.5,146.48,6.8267]
[1723581101832,0.12549,146.49,146.48,6.8267]
[1723581103761,0.12549,146.49,146.47,23.8946]
[1723581104460,0.12549,146.49,146.48,6.8268]
[1723581105558,0.12549,146.51,146.5,6.8257]
[1723581105744,0.37647,146.51,146.5,6.8257]
[1723581105942,0.25098,146.51,146.5,6.8257]
[1723581106162,0.12549,146.51,146.5,6.8257]
[1723581107333,12.30055745,146.54,146.51,6.8252]
[1723581107664,38.6660709,146.57,146.46,6.315]
[1723581107835,12.2989143,146.56,146.53,17.0606]
[1723581108036,32.1449852,146.57,146.53,23.8849]
[1723581108250,26.6687709,146.57,146.53,23.8849]
[1723581108860,0.12549,146.56,146.53,23.8849]
[1723581109071,13.3564709,146.57,146.53,23.8849]
[1723581109237,0.8264709,146.57,146.55,6.8234]
[1723581109452,0.8264709,146.57,146.54,6.824]
[1723581110641,0.25098,146.56,146.54,6.8239]
[1723581112072,0.12549,146.56,146.54,6.8239]
[1723581115164,0.8264709,146.57,146.56,6.8231]
[1723581116382,0.8264709,146.57,146.55,23.8813]
[1723581117192,0.9519609,146.57,146.56,6.8231]
[1723581117490,0.8264709,146.57,146.56,6.8231]
[1723581120809,13.3564709,146.57,146.55,17.0579]
[1723581121398,13.3564709,146.57,146.55,23.8813]
[1723581121870,13.4819609,146.57,146.56,6.8231]
[1723581122768,13.4819609,146.57,146.55,23.8814]
[1723581123067,13.4819609,146.57,146.56,6.8231]
[1723581123270,0.8264709,146.57,146.56,6.8231]
[1723581124768,0.9519609,146.57,146.56,6.8231]
[1723581126265,0.12549,146.56,146.51,6.2036]
[1723581126462,0.12549,146.56,146.53,6.8243]
[1723581126463,0.25098,146.56,146.53,6.8243]
[1723581127075,0.25098,146.56,146.54,6.8239]
[1723581129496,38.78010304,146.56,146.52,17.0617]
[1723581129698,0.12549,146.54,146.49,17.0656]
[1723581129907,0.63670304,146.54,146.51,6.8253]
[1723581130195,0.12549,146.54,146.51,17.0631]
[1723581130497,0.63670304,146.55,146.48,6.5685]
[1723581130498,0.12549,146.55,146.54,6.8237]
[1723581130696,0.25098,146.55,146.54,6.8237]
[1723581131097,0.25098,146.55,146.53,23.8851]
[1723581131274,0.12549,146.54,146.5,17.0642]
[1723581131473,0.25098,146.55,146.48,6.5685]
[1723581131695,0.25098,146.55,146.54,6.824]
[1723581132288,0.25098,146.55,146.53,6.8245]
[1723581132877,0.25098,146.55,146.52,23.8864]
[1723581133706,0.25098,146.55,146.53,6.8243]
[1723581134391,0.25098,146.55,146.52,23.8864]
[1723581135106,0.63670304,146.55,146.52,17.0615]
[1723581135283,0.25098,146.55,146.52,23.8862]
[1723581135608,0.63670304,146.55,146.52,23.8862]
[1723581136281,0.25098,146.55,146.52,23.8862]
[1723581137003,0.12549,146.53,146.49,23.8916]
[1723581137198,45.50196,146.53,146.49,23.8916]
[1723581137590,0.12549,146.51,146.49,23.8916]
[1723581138208,0.12549,146.51,146.46,17.0688]
[1723581138209,0.37647,146.51,146.46,17.0688]
[1723581138702,0.76219304,146.51,146.46,17.0688]
[1723581139005,0.76219304,146.51,146.48,6.8265]
[1723581139585,0.76219304,146.51,146.46,17.0688]
[1723581139586,0.76219304,146.51,146.49,6.8262]
[1723581139795,0.25098,146.51,146.49,6.8262]
[1723581139994,0.63670304,146.51,146.49,6.8262]
[1723581140501,0.63670304,146.51,146.48,23.8929]
[1723581140890,0.63670304,146.51,146.45,17.0699]
[1723581141121,0.12549,146.49,146.46,6.8274]
[1723581141290,0.12549,146.49,146.42,16.4545]
[1723581141291,0.12549,146.49,146.48,6.8268]
[1723581142715,0.50196,146.5,146.47,23.8944]
[1723581142923,45.50196,146.5,146.47,17.0672]
[1723581143091,0.12549,146.48,146.47,17.0672]
[1723581143488,0.12549,146.48,146.47,23.8945]
[1723581143688,0.38572304,146.48,146.43,6.8287]
[1723581143918,0.12549,146.47,146.44,6.8283]
[1723581144319,0.12549,146.47,146.4,6.3266]
[1723581144320,0.12549,146.47,146.45,6.8281]
[1723581144505,0.37647,146.47,146.44,17.0712]
[1723581144716,0.12549,146.46,146.41,17.0745]
[1723581144922,0.12549,146.45,146.44,6.8287]
[1723581146934,0.25098,146.46,146.43,23.9016]
[1723581147424,0.25098,146.46,146.44,6.8286]
[1723581148530,0.12549,146.46,146.44,6.8286]
[1723581148736,0.12549,146.46,146.45,6.8282]
[1723581148934,0.12549,146.46,146.43,23.9016]
[1723581149735,0.12549,146.46,146.43,17.0726]
[1723581149929,0.12549,146.46,146.45,6.8282]
[1723581150122,37.4453,146.5,146.47,6.8273]
[1723581150937,37.4453,146.5,146.46,6.8276]
[1723581151641,47.1613,146.52,146.47,17.0674]
[1723581151935,28.3813,146.52,146.47,17.0674]
[1723581152141,35.2067,146.52,146.47,23.8946]
[1723581152434,12.54,146.5,146.48,6.8268]
[1723581153137,12.54,146.5,146.47,23.8946]
[1723581153444,0.12549,146.49,146.47,23.8946]
[1723581154742,0.25098,146.51,146.5,6.8259]
[1723581155236,0.25098,146.51,146.44,15.6992]
[1723581155237,0.25098,146.51,146.49,6.8263]
[1723581155438,0.63670304,146.51,146.49,17.0655]
[1723581155639,0.25098,146.51,146.49,17.0655]
[1723581155837,0.25098,146.51,146.49,23.8917]
[1723581156648,0.12549,146.51,146.49,23.8917]
[1723581156944,0.12549,146.51,146.5,6.8259]
[1723581157527,12.54,146.52,146.5,6.8259]
[1723581157839,12.54,146.54,146.51,6.8254]
[1723581158034,12.54,146.54,146.49,17.0655]
[1723581158035,19.3642,146.54,146.49,23.8915]
[1723581158236,19.74992304,146.54,146.49,23.8915]
[1723581158537,12.54,146.52,146.49,23.8915]
[1723581159823,12.54,146.52,146.5,6.8256]
[1723581165846,0.12549,146.51,146.49,17.0655]
[1723581166055,0.25098,146.51,146.49,23.8917]
[1723581167036,0.63670304,146.51,146.49,23.8917]
[1723581167840,12.54,146.5,146.47,6.8271]
[1723581168158,0.12549,146.49,146.47,6.8271]
[1723581169422,0.12549,146.5,146.46,17.0688]
[1723581169647,0.37647,146.5,146.46,17.0688]
[1723581170029,0.37647,146.5,146.48,6.8267]
[1723581171037,0.37647,146.5,146.46,23.8964]
[1723581171245,0.12549,146.48,146.46,23.8964]
[1723581171939,0.12549,146.48,146.47,6.8273]
[1723581173041,0.12549,146.48,146.46,23.8964]
[1723581173346,0.12549,146.48,146.42,6.8292]
[1723581173347,0.12549,146.46,146.42,6.8292]
[1723581173550,0.50196,146.46,146.42,6.8292]
[1723581173755,0.50196,146.46,146.41,6.83]
[1723581173756,12.54,146.43,146.41,6.83]
[1723581174235,12.66549,146.43,146.42,6.8296]
[1723581174928,0.12549,146.43,146.42,6.8296]
[1723581177231,12.54,146.45,146.42,17.0736]
[1723581178251,0.12549,146.46,146.42,17.0736]
[1723581178444,12.66549,146.45,146.42,17.0736]
[1723581178834,12.66549,146.45,146.42,23.9031]
[1723581179150,0.12549,146.44,146.42,23.9031]
[1723581179356,0.12549,146.43,146.42,23.9031]
[1723581179732,12.66549,146.43,146.39,23.9075]
[1723581179936,12.66549,146.43,146.4,6.8305]
[1723581180358,12.66549,146.43,146.41,6.83]
[1723581182038,12.66549,146.43,146.42,6.8296]
[1723581182232,12.91647,146.43,146.42,6.8296]
[1723581182434,0.12549,146.43,146.42,6.8296]
[1723581182640,0.25098,146.44,146.41,17.0746]
[1723581182853,0.25098,146.44,146.42,6.8292]
[1723581183046,0.12549,146.44,146.43,6.8292]
[1723581184160,0.12549,146.44,146.42,6.8295]
[1723581184465,0.12549,146.42,146.41,23.9047]
[1723581184653,0.12549,146.42,146.4,6.8305]
[1723581184854,0.12549,146.42,146.41,6.8301]
[1723581196279,0.25098,146.42,146.41,6.8301]
[1723581196479,0.37647,146.42,146.41,6.8301]
[1723581197682,0.25098,146.42,146.41,6.8301]
[1723581202787,0.12549,146.41,146.4,17.0759]
[1723581202962,0.37647,146.41,146.4,17.0759]
[1723581204490,0.50196,146.41,146.4,23.9065]
[1723581204669,0.37647,146.41,146.4,23.9065]
[1723581206989,0.25098,146.41,146.4,23.9065]
[1723581207208,0.12549,146.41,146.4,23.9065]
[1723581210574,7.13960113,146.47,146.39,12.54]
[1723581210802,16.3823,146.5,146.36,15.0591]
[1723581210803,23.2086,146.5,146.45,6.8278]
[1723581211098,23.2086,146.5,146.46,6.8275]
[1723581211399,16.3823,146.5,146.47,6.8272]
[1723581211774,20.02424081,146.52,146.48,6.8268]
[1723581211979,12.8866,146.52,146.48,6.8268]
[1723581212176,6.0616,146.52,146.48,6.8268]
[1723581212380,19.3647,146.53,146.49,6.8264]
[1723581212593,6.8247,146.53,146.48,6.8267]
[1723581212898,23.73599079,146.54,146.5,6.8257]
[1723581213105,23.73599079,146.54,146.51,6.8253]
[1723581213287,16.5997,146.54,146.51,6.8253]
[1723581214878,0.12549,146.52,146.51,6.8253]
[1723581215982,6.2461,146.56,146.52,6.825]
[1723581216186,27.08418017,146.57,146.52,6.825]
[1723581216388,6.8232,146.56,146.52,6.825]
[1723581216583,6.8237,146.55,146.5,6.8254]
[1723581216891,0.38572304,146.54,146.5,6.8254]
[1723581217298,45.38572304,146.54,146.5,6.8254]
[1723581217805,0.12549,146.47,146.43,16.3544]
[1723581217977,0.12549,146.47,146.44,6.8286]
[1723581218177,0.12549,146.47,146.45,6.8282]
[1723581218605,0.12549,146.5,146.46,6.8278]
[1723581218788,0.50196,146.5,146.46,6.8278]
[1723581221087,0.12549,146.48,146.46,6.8278]
[1723581221805,0.37647,146.49,146.47,6.8272]
[1723581222001,0.12549,146.49,146.47,6.8272]
[1723581222590,0.12549,146.49,146.46,6.8276]
[1723581223188,0.25098,146.5,146.46,6.8276]
[1723581224195,0.25098,146.5,146.47,6.8272]
[1723581226610,7.07638,146.51,146.47,6.8272]
[1723581228706,0.12549,146.49,146.45,6.8281]
[1723581231028,0.12549,146.49,146.46,6.8276]
[1723581234310,0.12549,146.51,146.47,6.8269]
[1723581234514,7.07648,146.51,146.47,6.8269]
[1723581236915,0.25098,146.51,146.47,6.8269]
[1723581237302,0.25098,146.51,146.48,6.8267]
[1723581238013,7.07598,146.52,146.43,16.3544]
[1723581238014,13.42603741,146.54,146.44,31.36]
[1723581238218,13.42603741,146.54,146.43,16.3544]
[1723581238219,6.8237,146.55,146.51,6.8251]
[1723581238598,16.6514,146.56,146.51,6.8251]
[1723581238917,7.20962304,146.55,146.5,6.8258]
[1723581239302,0.38572304,146.54,146.46,31.36]
[1723581239500,0.38572304,146.54,146.45,71.1423]
[1723581239917,0.38572304,146.54,146.46,12.54]
[1723581240121,0.12549,146.53,146.46,12.54]
[1723581240800,0.12549,146.53,146.49,6.826]
[1723581241013,0.12549,146.53,146.46,12.54]
[1723581241014,0.12549,146.53,146.5,6.8259]
[1723581242134,6.8237,146.55,146.5,6.8259]
[1723581242437,23.4746,146.56,146.51,6.8254]
[1723581242616,6.8237,146.55,146.51,6.8254]
[1723581242814,6.8237,146.55,146.5,6.8258]
[1723581243624,6.8241,146.54,146.5,6.8258]
[1723581245119,6.94919,146.55,146.5,6.8258]
[1723581246401,7.96120496,146.57,146.5,12.54]
[1723581246715,0.8264709,146.57,146.52,12.54]
[1723581247429,0.8264709,146.57,146.56,6.8231]
[1723581247613,0.8264709,146.57,146.56,26.8231]
[1723581249533,0.8264709,146.57,146.55,6.8234]
[1723581249741,0.8264709,146.57,146.51,6.5936]
[1723581249950,0.8264709,146.57,146.54,6.8239]
[1723581250132,0.8264709,146.57,146.51,6.5936]
[1723581250133,0.8264709,146.57,146.55,6.8235]
[1723581250337,0.8264709,146.57,146.53,6.8244]
[1723581250338,0.12549,146.56,146.53,6.8244]
[1723581250556,0.12549,146.56,146.54,6.8239]
[1723581250758,0.8264709,146.57,146.5,16.393]
[1723581250938,0.8264709,146.57,146.56,6.8231]
[1723581256579,0.8264709,146.57,146.55,6.8234]
[1723581256785,0.8264709,146.57,146.5,16.393]
[1723581257082,0.8264709,146.57,146.54,6.8237]
[1723581257462,0.8264709,146.57,146.55,6.8235]
[1723581257880,0.8264709,146.57,146.5,16.393]
[1723581257881,0.12549,146.56,146.5,16.393]
[1723581258051,0.12549,146.56,146.46,15.8516]
[1723581258052,0.25098,146.56,146.46,15.8516]
[1723581258246,0.25098,146.56,146.54,6.8238]
[1723581258247,0.12549,146.56,146.54,6.8238]
[1723581258584,0.12549,146.56,146.54,6.8239]
[1723581260369,0.12549,146.56,146.55,6.8236]
[1723581260567,0.12549,146.56,146.48,31.31]
[1723581260568,0.12549,146.56,146.54,6.8239]
[1723581264483,0.12549,146.56,146.53,6.8242]
[1723581264663,0.37647,146.56,146.53,6.8242]
[1723581265572,0.37647,146.56,146.54,6.8239]
[1723581266764,0.37647,146.56,146.53,6.8243]
[1723581267174,0.12549,146.55,146.46,47.1616]
[1723581267478,0.12549,146.54,146.47,20.0]
[1723581267687,0.37647,146.54,146.47,20.0]